bitfinex/quotes_ETHUSD_20230116
["timestamp","ask_amount","ask_price","bid_price","bid_amount"]
[1673841582519,15.1209123,1570.2,1570.1,25.04170629]
[1673841584198,2.3836923,1570.2,1570.1,25.04170629]
[1673841590624,8.8534542,1570.3,1570.1,25.04170629]
[1673841590998,2.4852542,1570.3,1570.1,25.04170629]
[1673841591212,2.4852542,1570.3,1570.2,2.50417063]
[1673841592794,8.8534542,1570.3,1570.1,25.04170629]
[1673841597422,8.8534542,1570.3,1570.1,25.03896477]
[1673841598339,8.8534542,1570.3,1570.1,18.51665848]
[1673841598550,2.3836923,1570.2,1570.1,18.51665848]
[1673841600123,15.2219342,1570.3,1570.1,18.51665848]
[1673841600996,15.1719342,1570.3,1570.1,18.51665848]
[1673841601167,0.0515619,1570.3,1570.2,3.27278678]
[1673841601387,0.0515619,1570.3,1570.2,6.90673131]
[1673841601853,0.0515619,1570.3,1570.2,5.45173131]
[1673841602174,0.0515619,1570.3,1570.2,2.17894453]
[1673841602866,8.8034542,1570.3,1570.2,2.17894453]
[1673841603104,8.8034542,1570.3,1570.1,29.07985848]
[1673841604175,15.3509123,1570.2,1570.1,29.07985848]
[1673841604988,15.3509123,1570.2,1570.1,18.51665848]
[1673841605869,12.96722,1570.2,1570.0,298.67791179]
[1673841606039,2.38462101,1570.1,1570.0,298.67791179]
[1673841606266,15.35266101,1570.1,1570.0,298.67791179]
[1673841606943,2.38462101,1570.1,1570.0,298.67791179]
[1673841607246,8.75323101,1570.2,1570.0,298.67791179]
[1673841607462,2.38462101,1570.2,1570.0,298.67791179]
[1673841607676,5.38462101,1570.2,1570.1,6.52230629]
[1673841608244,5.38462101,1570.2,1570.0,298.67791179]
[1673841609580,2.38462101,1570.2,1570.0,299.89491179]
[1673841615928,8.80438291,1570.3,1570.0,299.89491179]
[1673841616155,8.80438291,1570.3,1570.1,2.0]
[1673841617236,8.80438291,1570.3,1570.1,3.22]
[1673841617237,2.38462101,1570.2,1570.1,3.22]
[1673841617453,0.0515619,1570.3,1570.2,5.195]
[1673841617454,2.43618291,1570.3,1570.2,5.195]
[1673841620596,0.0515619,1570.3,1570.2,5.195]
[1673841622692,0.0515619,1570.3,1570.2,5.19293724]
[1673841625318,0.0515619,1570.3,1570.2,8.46572402]
[1673841625539,0.0515619,1570.3,1570.2,10.46572402]
[1673841628124,0.0515619,1570.3,1570.2,8.46572402]
[1673841629318,0.0515619,1570.3,1570.2,10.46572402]
[1673841629902,0.0515619,1570.3,1570.2,8.46572402]
[1673841630105,0.0515619,1570.3,1570.2,3.59272402]
[1673841630590,0.0515619,1570.3,1570.2,0.31993724]
[1673841630745,0.0515619,1570.3,1570.1,17.9428]
[1673841630952,2.43618291,1570.3,1570.1,17.9428]
[1673841631195,15.17261291,1570.3,1570.1,17.9428]
[1673841633275,12.7379919,1570.3,1570.1,17.9428]
[1673841633524,6.3697619,1570.3,1570.1,17.9428]
[1673841633746,6.3697619,1570.3,1570.1,24.46510629]
[1673841634425,0.0015619,1570.3,1570.2,3.27278678]
[1673841634656,0.0015619,1570.3,1570.2,4.49278678]
[1673841634899,0.0015619,1570.3,1570.2,15.84168678]
[1673841635369,0.0015619,1570.3,1570.2,17.84168678]
[1673841635577,0.0015619,1570.3,1570.2,22.07236609]
[1673841639754,0.0015619,1570.3,1570.2,20.07236609]
[1673841642386,0.0015619,1570.3,1570.2,16.79957931]
[1673841642637,0.0015619,1570.3,1570.2,11.3489]
[1673841644749,2.38618291,1570.3,1570.2,11.3489]
[1673841646269,2.61618291,1570.3,1570.2,11.3489]
[1673841646447,0.2315619,1570.3,1570.2,11.3489]
[1673841646655,2.38618291,1570.3,1570.2,17.55085678]
[1673841646868,0.0015619,1570.3,1570.2,30.28807678]
[1673841647089,0.0015619,1570.3,1570.2,34.72807678]
[1673841649898,0.12090855,1570.4,1570.3,0.0004381]
[1673841650208,0.12090855,1570.4,1570.3,1.2164381]
[1673841651194,0.12090855,1570.4,1570.3,0.0004381]
[1673841652247,0.12090855,1570.4,1570.3,2.07756759]
[1673841653900,0.12090855,1570.4,1570.3,0.0004381]
[1673841654574,2.50552956,1570.4,1570.3,0.0004381]
[1673841656260,9.33526813,1570.4,1570.3,0.0004381]
[1673841656418,9.56526813,1570.4,1570.3,0.0004381]
[1673841656624,12.56526813,1570.4,1570.3,0.0004381]
[1673841657066,18.93306813,1570.4,1570.3,0.0004381]
[1673841661491,9.71870855,1570.4,1570.3,0.0004381]
[1673841662905,12.10361671,1570.4,1570.3,0.0004381]
[1673841664159,18.93019242,1570.4,1570.3,0.0004381]
[1673841664955,16.08650855,1570.4,1570.3,0.0004381]
[1673841665237,18.93019242,1570.4,1570.3,0.0004381]
[1673841667284,16.08650855,1570.4,1570.3,0.0004381]
[1673841667902,12.10324615,1570.4,1570.3,0.0004381]
[1673841670539,9.10324615,1570.4,1570.3,4.8734381]
[1673841670699,9.10324615,1570.4,1570.3,0.0004381]
[1673841673429,0.00172431,1570.3,1570.1,1.457]
[1673841673637,0.23172431,1570.3,1570.1,7.97930629]
[1673841675480,0.23172431,1570.3,1570.2,3.27278678]
[1673841675481,0.00172431,1570.3,1570.2,3.27278678]
[1673841678716,0.00172431,1570.3,1570.1,33.51841629]
[1673841678717,0.00172431,1570.3,1570.1,27.14940629]
[1673841678932,0.00172431,1570.3,1570.1,30.42219307]
[1673841679141,0.00172431,1570.3,1570.2,3.04221931]
[1673841679351,0.00172431,1570.3,1570.1,32.42219307]
[1673841679998,0.00172431,1570.3,1570.1,30.42219307]
[1673841680531,0.00172431,1570.3,1570.1,32.42219307]
[1673841682012,0.00172431,1570.3,1570.1,30.42219307]
[1673841682700,0.00172431,1570.3,1570.1,32.42219307]
[1673841682921,0.00172431,1570.3,1570.2,3.24221931]
[1673841683552,0.00172431,1570.3,1570.2,5.24221931]
[1673841685924,0.00172431,1570.3,1570.2,3.24221931]
[1673841686551,0.00172431,1570.3,1570.2,6.51500609]
[1673841686716,0.00172431,1570.3,1570.2,8.51500609]
[1673841690810,0.00172431,1570.3,1570.2,9.96600609]
[1673841692523,0.00172431,1570.3,1570.2,7.96600609]
[1673841692733,0.00172431,1570.3,1570.2,19.36010609]
[1673841694965,0.00172431,1570.3,1570.2,17.90910609]
[1673841695365,0.00172431,1570.3,1570.2,17.90581025]
[1673841696307,0.00172431,1570.3,1570.2,19.36281025]
[1673841696519,0.00172431,1570.3,1570.2,21.36281025]
[1673841700934,0.00172431,1570.3,1570.2,27.73142025]
[1673841707237,3.44888223,1570.8,1570.3,11.14134202]
[1673841707453,0.1266373,1570.8,1570.5,3.457]
[1673841707676,0.1266373,1570.8,1570.7,1.45]
[1673841707922,0.1266373,1570.8,1570.7,5.19506546]
[1673841709923,0.1266373,1570.8,1570.7,5.19018488]
[1673841711179,0.1266373,1570.8,1570.7,3.74506546]
[1673841712406,0.1266373,1570.8,1570.6,20.5461]
[1673841712614,0.1266373,1570.8,1570.6,13.99528678]
[1673841712824,0.1266373,1570.8,1570.6,10.7225]
[1673841718856,0.1266373,1570.8,1570.7,3.27278678]
[1673841719244,0.1266373,1570.8,1570.7,11.63936678]
[1673841719591,0.1266373,1570.8,1570.7,15.27054546]
[1673841719764,0.1266373,1570.8,1570.7,3.27278678]
[1673841719972,0.1266373,1570.8,1570.6,10.7225]
[1673841720199,0.1266373,1570.8,1570.6,13.99528678]
[1673841724001,0.1266373,1570.8,1570.4,18.2149]
[1673841724219,6.59677,1570.7,1570.4,18.2149]
[1673841724374,7.81377,1570.7,1570.4,18.2149]
[1673841724799,14.18054,1570.7,1570.4,18.2149]
[1673841726948,6.59677,1570.7,1570.4,18.2149]
[1673841727853,16.56476445,1570.7,1570.4,18.2149]
[1673841729070,14.18054,1570.7,1570.4,18.2149]
[1673841730075,16.56476445,1570.7,1570.4,18.21193534]
[1673841734851,16.56476445,1570.7,1570.3,10.1878]
[1673841735008,16.56476445,1570.7,1570.0,305.04733179]
[1673841735009,3.60322445,1570.5,1570.0,305.04733179]
[1673841735214,3.60322445,1570.5,1570.1,19.2092]
[1673841735215,0.23,1570.4,1570.1,19.2092]
[1673841735464,0.23,1570.4,1570.0,298.67791179]
[1673841735654,19.56806445,1570.4,1570.0,298.67791179]
[1673841736436,2.38422445,1570.3,1570.0,298.67791179]
[1673841736745,12.96722,1570.2,1570.0,298.67791179]
[1673841738429,8.75187445,1570.5,1570.1,3.27278678]
[1673841738594,6.36765,1570.5,1570.1,9.79509307]
[1673841739049,6.36765,1570.5,1570.1,6.52230629]
[1673841739265,30.33859445,1570.5,1570.1,10.5101]
[1673841739693,0.23,1570.4,1570.1,10.5101]
[1673841739862,6.3682,1570.3,1570.1,10.5101]
[1673841740214,0.23,1570.2,1570.1,10.5101]
[1673841740523,0.22798206,1570.2,1570.1,10.5101]
[1673841740927,6.3682,1570.3,1570.1,10.5101]
[1673841742791,12.7364,1570.3,1570.0,298.67791179]
[1673841742997,0.23,1570.2,1570.0,298.67791179]
[1673841743208,6.5987,1570.2,1570.0,298.67791179]
[1673841743939,12.9674,1570.2,1570.0,298.67791179]
[1673841744380,6.5987,1570.2,1570.0,298.67791179]
[1673841745215,6.5987,1570.2,1570.0,301.18766852]
[1673841745421,0.23,1570.2,1570.0,301.18766852]
[1673841746887,6.59868,1570.2,1570.0,298.67791179]
[1673841749744,0.23,1570.2,1570.0,298.67791179]
[1673841751985,0.23,1570.2,1570.1,2.0]
[1673841752176,0.23,1570.3,1570.1,2.0]
[1673841754307,0.23,1570.3,1570.0,298.67791179]
[1673841754454,0.23,1570.3,1570.1,6.52230629]
[1673841755204,0.23,1570.3,1570.1,8.52230629]
[1673841757309,0.23,1570.3,1570.1,6.52230629]
[1673841765232,0.23,1570.3,1570.0,298.67791179]
[1673841765441,6.59822,1570.3,1570.0,298.67791179]
[1673841765952,8.98244445,1570.3,1570.0,298.67791179]
[1673841766747,6.59822,1570.3,1570.0,298.67791179]
[1673841769287,6.36822,1570.3,1570.0,298.67791179]
[1673841769485,6.36822,1570.3,1570.1,6.52230629]
[1673841769695,6.36822,1570.3,1570.1,8.52230629]
[1673841770539,2.38710016,1570.4,1570.1,8.52230629]
[1673841770749,5.38422445,1570.4,1570.1,8.52230629]
[1673841771799,6.59822445,1570.4,1570.1,8.52230629]
[1673841772004,6.59822445,1570.4,1570.2,0.85223063]
[1673841772210,6.59822445,1570.4,1570.1,8.52230629]
[1673841774160,6.59822445,1570.4,1570.1,6.52230629]
[1673841774966,5.38422445,1570.4,1570.1,6.52230629]
[1673841775837,3.0,1570.4,1570.1,6.52230629]
[1673841776464,5.38422445,1570.4,1570.1,6.52230629]
[1673841777515,5.38422445,1570.4,1570.2,0.65223063]
[1673841777836,2.38422445,1570.4,1570.2,0.65223063]
[1673841778008,2.38422445,1570.5,1570.2,0.65223063]
[1673841778217,5.38422445,1570.5,1570.2,0.65223063]
[1673841778620,8.75133445,1570.6,1570.3,2.0]
[1673841778879,8.75133445,1570.6,1570.4,0.2]
[1673841779254,2.38422445,1570.6,1570.4,0.2]
[1673841779525,22.75094445,1570.7,1570.4,0.2]
[1673841780137,8.75094445,1570.7,1570.4,0.2]
[1673841780724,16.33781445,1570.7,1570.4,0.2]
[1673841780993,16.33781445,1570.7,1570.3,30.0957]
[1673841781515,18.24384175,1570.8,1570.4,3.27278678]
[1673841781731,3.0,1570.7,1570.4,5.27278678]
[1673841783524,6.4931073,1570.8,1570.5,3.27278678]
[1673841783732,0.1266373,1570.8,1570.6,5.60006546]
[1673841785304,0.1266373,1570.8,1570.6,24.70436546]
[1673841786143,0.1266373,1570.8,1570.6,22.70436546]
[1673841786723,0.1266373,1570.8,1570.6,22.70185679]
[1673841787289,0.1266373,1570.8,1570.6,22.72737982]
[1673841787612,0.1266373,1570.8,1570.7,2.27273798]
[1673841789244,0.1266373,1570.8,1570.6,22.72737982]
[1673841789574,0.1266373,1570.8,1570.6,22.40010114]
[1673841789998,0.12286134,1570.8,1570.6,22.40010114]
[1673841794125,0.12286134,1570.8,1570.6,24.40010114]
[1673841794494,0.12286134,1570.8,1570.7,3.27278678]
[1673841795504,0.12286134,1570.8,1570.7,12.85136678]
[1673841795713,1e-08,1570.8,1570.7,17.64454276]
[1673841796032,1e-08,1570.8,1570.7,34.23032276]
[1673841797838,1e-08,1570.8,1570.7,35.45032276]
[1673841798023,0.12433337,1570.9,1570.8,4.42699999]
[1673841798199,0.12433337,1570.9,1570.8,16.50296677]
[1673841798409,0.12433337,1570.9,1570.8,23.12781705]
[1673841800322,0.12433337,1570.9,1570.8,23.15333683]
[1673841806104,0.12433337,1570.9,1570.8,21.15333683]
[1673841806309,0.12433337,1570.9,1570.8,14.78715683]
[1673841806523,0.12433337,1570.9,1570.8,21.15333683]
[1673841807399,0.12433337,1570.9,1570.8,14.78715683]
[1673841807553,0.12433337,1570.9,1570.8,10.16230655]
[1673841810924,0.12433337,1570.9,1570.8,0.00199999]
[1673841812108,0.12433337,1570.9,1570.8,7.69978677]
[1673841813157,0.12433337,1570.9,1570.8,7.7019613]
[1673841813539,0.12433337,1570.9,1570.8,9.7019613]
[1673841813765,0.12433337,1570.9,1570.8,13.31298543]
[1673841813977,0.12433337,1570.9,1570.8,19.67916543]
[1673841815769,0.12855809,1571.0,1570.9,4.54896663]
[1673841816192,0.12855809,1571.0,1570.9,23.99529341]
[1673841817154,0.12855809,1571.0,1570.9,3.27278678]
[1673841817791,0.12855809,1571.0,1570.9,4.23628222]
[1673841818426,0.12855809,1571.0,1570.9,15.16298222]
[1673841818835,0.12855809,1571.0,1570.9,14.19948678]
[1673841820592,0.12855809,1571.0,1570.9,20.56525678]
[1673841820744,0.12837491,1571.1,1571.0,2.0]
[1673841821638,0.12837491,1571.1,1570.9,22.56525678]
[1673841821795,0.12837491,1571.1,1570.9,14.19948678]
[1673841823268,0.12837491,1571.1,1570.9,19.15376532]
[1673841824232,0.12837491,1571.1,1570.9,14.19948678]
[1673841829674,0.12837491,1571.1,1570.9,16.19948678]
[1673841830555,0.12837491,1571.1,1570.9,22.56519678]
[1673841835986,0.12837491,1571.1,1571.0,5.27278678]
[1673841836559,0.1333245,1571.2,1571.1,2.0]
[1673841837278,0.1333245,1571.2,1571.0,8.31144389]
[1673841839930,0.1333245,1571.2,1571.0,6.31144389]
[1673841841774,2.51754895,1571.2,1571.0,6.31144389]
[1673841841974,2.51754895,1571.2,1571.0,3.27278678]
[1673841843690,0.1333245,1571.2,1571.0,3.27278678]
[1673841844152,0.1333245,1571.2,1571.0,5.27278678]
[1673841844744,0.1333245,1571.2,1571.0,24.08428678]
[1673841845305,0.1333245,1571.2,1571.0,30.44958678]
[1673841845472,0.1333245,1571.2,1571.1,3.04495868]
[1673841848615,0.1333245,1571.2,1571.1,6.31774546]
[1673841848858,0.12332781,1571.3,1571.2,2.00217396]
[1673841849079,0.12332781,1571.3,1571.2,13.09552074]
[1673841849820,0.12332781,1571.3,1571.2,32.38532074]
[1673841850048,0.12332781,1571.3,1571.2,38.58620571]
[1673841851140,0.12332781,1571.3,1571.2,44.95076571]
[1673841851558,0.12332781,1571.3,1571.2,46.52979788]
[1673841853567,0.12332781,1571.3,1571.2,44.95076571]
[1673841855037,0.12332781,1571.3,1571.2,43.49476571]
[1673841857663,0.00032781,1571.3,1571.2,44.95076571]
[1673841857912,0.00032781,1571.3,1571.2,49.84950525]
[1673841858070,0.00032781,1571.3,1571.2,50.32532126]
[1673841858283,0.00032781,1571.3,1571.2,49.8474303]
[1673841859284,0.00032781,1571.3,1571.2,48.89795493]
[1673841859595,0.00032781,1571.3,1571.1,10.9047136]
[1673841859823,0.23032781,1571.3,1571.1,0.0076136]
[1673841860139,9.59744352,1571.3,1571.1,0.0076136]
[1673841861058,1.456,1571.2,1571.1,0.0076136]
[1673841861275,1.686,1571.2,1571.1,0.0076136]
[1673841861491,0.23,1571.2,1571.1,0.0076136]
[1673841864584,0.23,1571.2,1570.6,0.94947537]
[1673841864585,29.78866702,1571.2,1570.6,0.94947537]
[1673841864799,29.78866702,1571.2,1570.4,0.94947537]
[1673841864800,1.456,1570.9,1570.4,0.94947537]
[1673841865045,7.82208,1570.9,1570.5,1.57983124]
[1673841865258,3.0,1570.8,1570.3,45.02936335]
[1673841865486,3.23,1570.8,1570.4,6.08262842]
[1673841865696,3.23,1570.8,1570.4,4.50293633]
[1673841865910,9.5963,1570.8,1570.3,38.66121335]
[1673841866059,9.5963,1570.8,1570.4,1.57972701]
[1673841866605,9.5963,1570.8,1570.3,35.71173798]
[1673841866835,9.5963,1570.8,1570.3,36.66121335]
[1673841867244,9.5963,1570.8,1570.3,35.71173798]
[1673841867427,9.59917571,1570.8,1570.3,40.46085016]
[1673841867797,9.59917571,1570.8,1570.3,29.34358798]
[1673841868107,10.33438355,1570.8,1570.3,29.34358798]
[1673841868475,10.33438355,1570.8,1570.4,3.27278678]
[1673841869102,15.96547571,1570.8,1570.4,3.27278678]
[1673841869960,16.70068355,1570.8,1570.4,3.27278678]
[1673841870206,9.59917571,1570.8,1570.4,3.27278678]
[1673841878138,3.23,1570.8,1570.4,3.27278678]
[1673841882375,3.23,1570.8,1570.5,3.27278678]
[1673841882591,0.23,1570.8,1570.5,11.63992678]
[1673841883446,0.23,1570.8,1570.5,22.69412678]
[1673841884267,0.23,1570.8,1570.5,26.58269746]
[1673841886229,0.23,1570.8,1570.5,20.69412678]
[1673841888045,0.23,1570.8,1570.5,14.32448424]
[1673841896975,1.686,1570.8,1570.5,11.0542]
[1673841897915,8.05228,1570.8,1570.5,11.0542]
[1673841899591,1.441,1570.6,1570.3,18.25808798]
[1673841899839,1.441,1570.6,1570.3,29.27648798]
[1673841899840,1.686,1570.5,1570.3,29.27648798]
[1673841906989,0.23,1570.5,1570.3,29.27648798]
[1673841908146,3.0,1570.7,1570.5,0.23]
[1673841909002,10.54638,1570.8,1570.5,0.23]
[1673841909311,12.93060445,1570.8,1570.5,0.23]
[1673841909527,0.23,1570.7,1570.5,0.23]
[1673841911310,0.23,1570.7,1570.5,0.22629553]
[1673841912427,1.453,1570.8,1570.5,4.04899054]
[1673841912636,3.0,1570.9,1570.6,3.27278678]
[1673841912970,3.0,1570.9,1570.6,5.27278678]
[1673841913158,3.0,1570.9,1570.6,6.94497583]
[1673841913914,0.23,1570.8,1570.6,6.94497583]
[1673841917424,3.0,1570.9,1570.7,3.27278678]
[1673841917600,3.0,1571.0,1570.7,3.27278678]
[1673841917811,3.0,1571.0,1570.7,5.24065336]
[1673841918564,3.0,1571.0,1570.7,3.27278678]
[1673841918780,5.38422445,1571.0,1570.7,3.27278678]
[1673841921371,11.74968445,1571.0,1570.7,3.27278678]
[1673841923621,11.74968445,1571.0,1570.6,18.8052]
[1673841923838,0.23,1570.9,1570.6,22.07798678]
[1673841924153,9.59581,1570.9,1570.6,22.07798678]
[1673841925934,11.98003445,1570.9,1570.6,22.07798678]
[1673841926156,9.59581,1570.9,1570.6,22.07798678]
[1673841928527,3.23,1570.9,1570.6,22.07798678]
[1673841928731,0.23,1570.9,1570.6,22.07798678]
[1673841928941,0.23,1570.9,1570.6,25.72218011]
[1673841931602,0.23,1570.9,1570.6,22.07798678]
[1673841933577,2.61422445,1570.9,1570.6,22.07798678]
[1673841934341,0.23,1570.9,1570.6,22.07798678]
[1673841935707,2.61422445,1570.9,1570.6,22.07798678]
[1673841935927,15.34590445,1570.9,1570.6,18.8052]
[1673841936241,15.34590445,1570.9,1570.6,18.80195877]
[1673841942909,2.38422445,1570.8,1570.6,18.80195877]
[1673841943133,0.23,1570.7,1570.6,18.80195877]
[1673841954514,3.0,1570.8,1570.6,18.80195877]
[1673841954719,5.38422445,1570.9,1570.6,18.80195877]
[1673841954931,0.23,1570.8,1570.6,18.80195877]
[1673841955140,3.23,1570.8,1570.6,18.80195877]
[1673841956328,8.74950445,1571.1,1570.8,0.71777298]
[1673841956549,5.38422445,1571.0,1570.8,0.71777298]
[1673841959151,2.38422445,1571.0,1570.8,0.71777298]
[1673841959399,0.23,1570.9,1570.8,0.71777298]
[1673841959539,6.59577,1570.9,1570.8,0.71777298]
[1673841959756,11.97999445,1570.9,1570.8,0.71777298]
[1673841960430,9.59577,1570.9,1570.8,0.71777298]
[1673841961124,12.45687802,1570.9,1570.8,0.71777298]
[1673841961448,20.03864802,1570.9,1570.8,0.71777298]
[1673841962419,20.04152373,1570.9,1570.8,0.71777298]
[1673841965142,17.18041571,1570.9,1570.8,0.71777298]
[1673841966063,19.56529462,1570.9,1570.8,0.71777298]
[1673841966483,19.56248952,1570.9,1570.8,0.71777298]
[1673841966728,3.23,1570.9,1570.8,0.71777298]
[1673841967165,3.22734406,1570.9,1570.8,0.71777298]
[1673841977567,5.61229358,1570.9,1570.8,0.71777298]
[1673841977890,3.22734406,1570.9,1570.8,0.71777298]
[1673841979688,5.61229358,1570.9,1570.8,0.71777298]
[1673841981677,18.34383358,1570.9,1570.8,0.71777298]
[1673841982157,15.95888406,1570.9,1570.8,0.71777298]
[1673841982369,18.34360057,1570.9,1570.8,0.71777298]
[1673841982524,19.80060057,1570.9,1570.8,0.71777298]
[1673841982745,34.27699208,1570.9,1570.8,0.71777298]
[1673841982998,34.36535399,1570.9,1570.8,0.71777298]
[1673841983186,34.27699208,1570.9,1570.8,0.71777298]
[1673841986571,31.41588406,1570.9,1570.8,0.71777298]
[1673841987264,9.59311406,1570.9,1570.8,0.71777298]
[1673841987478,5.61112018,1570.9,1570.8,0.71777298]
[1673841988569,11.97689018,1570.9,1570.8,0.71777298]
[1673841989461,11.97689018,1570.9,1570.8,0.71519097]
[1673841990985,15.95888406,1570.9,1570.8,0.71519097]
[1673841994453,18.34215089,1570.9,1570.8,0.71519097]
[1673841994767,15.95888406,1570.9,1570.8,0.71519097]
[1673841995608,18.34282206,1570.9,1570.8,0.71519097]
[1673841995822,11.97705206,1570.9,1570.8,0.71519097]
[1673842003848,2.383938,1571.0,1570.8,0.71519097]
[1673842004289,2.383938,1571.1,1570.8,2.71519097]
[1673842004417,2.383938,1571.1,1570.8,32.14139097]
[1673842005080,2.383938,1571.1,1570.8,35.21016907]
[1673842005873,0.23,1571.0,1570.8,35.21016907]
[1673842009411,0.23,1571.0,1570.8,16.01576907]
[1673842009604,5.383938,1571.2,1570.9,3.27278678]
[1673842009815,5.383938,1571.2,1571.0,1.21]
[1673842010044,0.23,1571.1,1571.0,3.21]
[1673842010391,0.23,1571.1,1570.9,3.27278678]
[1673842010392,0.23,1571.1,1570.9,4.49178678]
[1673842010564,0.23,1571.1,1570.9,6.15746456]
[1673842011436,0.23,1571.1,1570.9,4.49178678]
[1673842015193,0.23,1571.1,1570.9,4.48795355]
[1673842016551,0.23,1571.1,1570.9,1.219]
[1673842016771,11.98184371,1571.1,1570.8,12.16499097]
[1673842019531,18.34687371,1571.1,1570.8,12.16499097]
[1673842020295,2.383938,1571.0,1570.8,12.16499097]
[1673842020595,0.23,1570.9,1570.8,12.16499097]
[1673842020743,3.23,1570.9,1570.8,12.16499097]
[1673842023438,3.23,1570.9,1570.8,12.11499097]
[1673842026549,3.0,1570.9,1570.8,17.07313327]
[1673842026863,8.748568,1571.2,1570.9,0.9477296]
[1673842026864,3.0,1571.1,1570.9,0.9477296]
[1673842027097,3.0,1571.1,1570.9,2.1657296]
[1673842027330,3.0,1571.1,1571.0,4.49078678]
[1673842027542,5.38426581,1571.3,1571.0,6.88819042]
[1673842027716,3.00032781,1571.3,1571.2,1.219]
[1673842027935,5.38426581,1571.3,1571.1,1.219]
[1673842028756,0.23,1571.2,1571.1,1.219]
[1673842028969,3.23,1571.2,1571.1,1.219]
[1673842029808,9.59456,1571.2,1571.1,1.219]
[1673842030035,11.978498,1571.2,1571.0,10.8171]
[1673842033019,8.749128,1571.1,1570.9,2.1647296]
[1673842033187,3.23,1571.0,1570.9,2.1647296]
[1673842035264,2.383938,1571.1,1570.9,5.43751638]
[1673842035595,5.383938,1571.2,1571.0,6.49178678]
[1673842035913,2.383938,1571.2,1571.0,6.49178678]
[1673842036126,5.38426581,1571.3,1571.0,6.49178678]
[1673842036951,0.23,1571.2,1571.0,6.49178678]
[1673842037511,0.23,1571.2,1571.0,4.49178678]
[1673842038754,2.613938,1571.2,1571.0,4.49178678]
[1673842039318,0.23,1571.2,1571.0,4.49178678]
[1673842039534,0.23,1571.2,1571.0,6.49178678]
[1673842039851,0.23,1571.2,1571.0,8.31767329]
[1673842041483,0.23,1571.2,1571.0,8.55267329]
[1673842043744,2.613938,1571.2,1571.0,6.55267329]
[1673842045517,0.23,1571.2,1571.0,6.55267329]
[1673842049711,2.613938,1571.2,1571.0,4.72678678]
[1673842052050,0.23,1571.2,1571.0,4.72678678]
[1673842054330,2.613938,1571.2,1571.0,4.72678678]
[1673842056315,0.23,1571.2,1571.0,4.72678678]
[1673842058340,2.613938,1571.2,1571.0,4.72678678]
[1673842060159,0.23,1571.2,1571.0,4.72678678]
[1673842062126,0.23,1571.2,1571.0,4.49078678]
[1673842063537,0.23,1571.2,1571.0,8.19361246]
[1673842064343,0.22757789,1571.2,1571.0,8.19361246]
[1673842066071,0.22757789,1571.2,1571.0,6.97561246]
[1673842069326,0.22757789,1571.2,1571.0,8.97561246]
[1673842070183,3.00032781,1571.3,1571.2,3.87557789]
[1673842070389,0.00032781,1571.3,1571.2,11.08220114]
[1673842070866,0.00032781,1571.3,1571.2,17.44676114]
[1673842071104,0.00032781,1571.3,1571.2,28.39496114]
[1673842073180,0.00032781,1571.3,1571.2,29.60596114]
[1673842074124,0.00032781,1571.3,1571.2,35.97052114]
[1673842075958,0.00032781,1571.3,1571.2,27.60596114]
[1673842076953,0.00032781,1571.3,1571.2,26.38696114]
[1673842082212,0.00032781,1571.3,1571.2,28.38696114]
[1673842082690,0.00032781,1571.3,1571.2,35.97052114]
[1673842082841,0.12332781,1571.5,1571.3,2.00167219]
[1673842083044,0.12332781,1571.5,1571.4,4.48678678]
[1673842093193,0.12332781,1571.5,1571.4,18.42828678]
[1673842093356,0.12332781,1571.5,1571.4,20.42828678]
[1673842099978,0.12332781,1571.5,1571.4,20.43328678]
[1673842100327,0.12332781,1571.5,1571.4,23.5989511]
[1673842100519,0.12332781,1571.5,1571.4,29.41342488]
[1673842101275,0.12332781,1571.5,1571.4,31.41342488]
[1673842101962,0.12332781,1571.5,1571.4,30.19942488]
[1673842102950,0.1435661,1571.7,1571.6,12.72588]
[1673842103253,0.1435661,1571.7,1571.6,17.99866678]
[1673842103443,0.1435661,1571.7,1571.6,23.68315646]
[1673842103899,0.1435661,1571.7,1571.6,26.11615646]
[1673842108576,0.14105799,1571.7,1571.6,26.11615646]
[1673842110051,1e-08,1571.7,1571.6,26.11615646]
[1673842121529,1e-08,1571.7,1571.6,30.06244648]
[1673842121975,1e-08,1571.7,1571.6,27.69467417]
[1673842122186,1e-08,1571.7,1571.6,30.06244811]
[1673842122833,1e-08,1571.8,1571.7,2.0]
[1673842123053,1e-08,1571.8,1571.7,22.42309159]
[1673842130038,1e-08,1571.8,1571.7,39.81059159]
[1673842132819,0.09894554,1571.9,1571.7,39.81059159]
[1673842133087,0.09894554,1571.9,1571.8,3.27278678]
[1673842133252,0.09894554,1571.9,1571.8,19.97810594]
[1673842133443,0.09894554,1571.9,1571.8,21.97810594]
[1673842134719,0.09894554,1571.9,1571.8,23.55650043]
[1673842136785,0.09894554,1571.9,1571.8,21.97810594]
[1673842137006,0.09894554,1571.9,1571.8,19.97810594]
[1673842138401,0.09894554,1571.9,1571.8,21.97810594]
[1673842138766,0.09894554,1571.9,1571.8,23.55652992]
[1673842139222,0.09894554,1571.9,1571.8,7.25384594]
[1673842139455,0.09894554,1571.9,1571.8,3.27278678]
[1673842143750,0.09894554,1571.9,1571.8,9.63491678]
[1673842145488,0.09894554,1571.9,1571.8,3.27278678]
[1673842146752,0.09894554,1571.9,1571.8,9.63491678]
[1673842147168,0.09894554,1571.9,1571.8,11.63491678]
[1673842147706,0.09894554,1571.9,1571.8,15.8010464]
[1673842148861,0.09894554,1571.9,1571.8,11.63491678]
[1673842150215,1e-08,1571.9,1571.8,11.63491678]
[1673842153161,1e-08,1571.9,1571.8,3.27278678]
[1673842155680,1e-08,1571.9,1571.8,15.99704678]
[1673842155935,1e-08,1571.9,1571.8,9.63491678]
[1673842158445,1e-08,1571.9,1571.8,12.52779745]
[1673842158874,1e-08,1571.9,1571.8,16.1062731]
[1673842159304,1e-08,1571.9,1571.8,14.52779745]
[1673842159568,1e-08,1571.9,1571.8,12.52779745]
[1673842159926,1e-08,1571.9,1571.8,9.63491678]
[1673842163455,1e-08,1571.9,1571.8,3.27278678]
[1673842167814,1.21900001,1571.9,1571.6,2.0]
[1673842168128,1.219,1571.8,1571.6,3.27278678]
[1673842169076,2.438,1571.7,1571.3,2.00167219]
[1673842169286,1.211,1571.5,1571.3,2.00167219]
[1673842169599,1.211,1571.5,1571.3,0.00167219]
[1673842169816,0.23,1571.4,1571.3,0.00167219]
[1673842173573,0.0021416,1571.3,1571.2,0.22757789]
[1673842173913,0.0021416,1571.3,1571.2,20.17575046]
[1673842174224,0.0021416,1571.3,1571.2,24.12312519]
[1673842174398,0.0021416,1571.3,1571.2,26.28660056]